[Event "Titled Tuesday Blitz July 11 Early 2023"]
[White "Larina, Maria"]
[Black "Jovic, Stanoje"]
[WhiteFideId "24113182"]
[BlackFideId "905020"]
[WhiteElo "2228"]
[BlackElo "2476"]
[Result "0-1"]
[Round "4"]
[TimeControl "180+2"]
[Date "2023.07.11"]
[WhiteClock "0:00:00"]
[BlackClock "0:01:01"]
[Board "166"]

1. e4 {[%clk 0:03:00]}  c6 {[%clk 0:02:59]} 2. d4 {[%clk 0:03:00]}  d5 {[%clk 0:02:59]} 3. f3 {[%clk 0:03:01]}  e6 {[%clk 0:02:58]} 4. Nc3 {[%clk 0:03:00]}  Bb4 {[%clk 0:02:58]} 5. Bd2 {[%clk 0:03:01]}  Nf6 {[%clk 0:02:58]} 6. Nge2 {[%clk 0:02:48]}  O-O {[%clk 0:02:55]} 7. Ng3 {[%clk 0:02:41]}  c5 {[%clk 0:02:54]} 8. dxc5 {[%clk 0:02:29]}  Nbd7 {[%clk 0:02:53]} 9. a3 {[%clk 0:02:17]}  Bxc5 {[%clk 0:02:52]} 10. b4 {[%clk 0:01:37]}  Bb6 {[%clk 0:02:47]} 11. Na4 {[%clk 0:01:35]}  dxe4 {[%clk 0:02:45]} 12. Nxb6 {[%clk 0:01:31]}  Qxb6 {[%clk 0:02:43]} 13. fxe4 {[%clk 0:01:28]}  Ne5 {[%clk 0:02:39]} 14. Bd3 {[%clk 0:01:23]}  Bd7 {[%clk 0:02:25]} 15. Qe2 {[%clk 0:01:21]}  a5 {[%clk 0:02:24]} 16. bxa5 {[%clk 0:01:17]}  Rxa5 {[%clk 0:02:24]} 17. Bxa5 {[%clk 0:01:11]}  Qxa5+ {[%clk 0:02:24]} 18. Qd2 {[%clk 0:01:06]}  Qc5 {[%clk 0:02:23]} 19. Rb1 {[%clk 0:00:30]}  Bc6 {[%clk 0:02:22]} 20. Rb3 {[%clk 0:00:21]}  Rd8 {[%clk 0:02:19]} 21. Qf2 {[%clk 0:00:21]}  Qa5+ {[%clk 0:02:17]} 22. Ke2 {[%clk 0:00:13]}  Ba4 {[%clk 0:01:55]} 23. Rxb7 {[%clk 0:00:10]}  Bxc2 {[%clk 0:01:48]} 24. Bb5 {[%clk 0:00:07]}  Qd2+ {[%clk 0:01:30]} 25. Kf1 {[%clk 0:00:06]}  Qc1+ {[%clk 0:01:26]} 26. Qe1 {[%clk 0:00:06]}  Qxa3 {[%clk 0:01:19]} 27. h3 {[%clk 0:00:04]}  h5 {[%clk 0:01:14]} 28. Kf2 {[%clk 0:00:03]}  Qc5+ {[%clk 0:01:10]} 29. Kf1 {[%clk 0:00:03]}  Rd1 {[%clk 0:01:08]} 30. Ne2 {[%clk 0:00:00]}  Nxe4 {[%clk 0:01:01]} 0-1


[Site "https://www.chess.com"]

[Event "Titled Tuesday Blitz July 11 Early 2023"]
[White "Ramu, K."]
[Black "Balla, Tamas-Kristof"]
[WhiteFideId "5006171"]
[BlackFideId "1208497"]
[WhiteElo "2198"]
[BlackElo "2467"]
[Result "0-1"]
[Round "4"]
[TimeControl "180+2"]
[Date "2023.07.11"]
[WhiteClock "0:00:37"]
[BlackClock "0:00:33"]
[Board "169"]

1. e4 {[%clk 0:02:56]}  c5 {[%clk 0:02:59]} 2. Nf3 {[%clk 0:02:57]}  Nc6 {[%clk 0:02:59]} 3. d4 {[%clk 0:02:57]}  cxd4 {[%clk 0:03:00]} 4. Nxd4 {[%clk 0:02:57]}  e5 {[%clk 0:03:01]} 5. Nb5 {[%clk 0:02:52]}  d6 {[%clk 0:03:01]} 6. c4 {[%clk 0:02:49]}  Be7 {[%clk 0:03:01]} 7. N1c3 {[%clk 0:02:36]}  a6 {[%clk 0:02:57]} 8. Na3 {[%clk 0:02:36]}  f5 {[%clk 0:02:57]} 9. Bd3 {[%clk 0:02:31]}  f4 {[%clk 0:02:54]} 10. Be2 {[%clk 0:02:27]}  Nh6 {[%clk 0:02:47]} 11. h3 {[%clk 0:02:18]}  O-O {[%clk 0:02:45]} 12. Bg4 {[%clk 0:02:13]}  Nxg4 {[%clk 0:02:35]} 13. hxg4 {[%clk 0:02:12]}  Be6 {[%clk 0:02:25]} 14. Qf3 {[%clk 0:01:51]}  Nd4 {[%clk 0:02:14]} 15. Qh3 {[%clk 0:01:46]}  h6 {[%clk 0:02:12]} 16. Bd2 {[%clk 0:01:41]}  Rc8 {[%clk 0:02:01]} 17. Nd5 {[%clk 0:01:33]}  Bxd5 {[%clk 0:01:45]} 18. cxd5 {[%clk 0:01:25]}  Qb6 {[%clk 0:01:27]} 19. Bc3 {[%clk 0:01:19]}  f3 {[%clk 0:01:18]} 20. Kd2 {[%clk 0:00:49]}  Rxc3 {[%clk 0:01:09]} 21. Kxc3 {[%clk 0:00:40]}  Rc8+ {[%clk 0:01:01]} 22. Nc4 {[%clk 0:00:39]}  Rxc4+ {[%clk 0:00:42]} 23. Kxc4 {[%clk 0:00:37]}  Qc5+ {[%clk 0:00:33]} 0-1


[Site "https://www.chess.com"]

[Event "Titled Tuesday Blitz July 11 Early 2023"]
[White "gueraumasague"]
[Black "Hernandez Bermudez, Ulises Eduardo"]
[BlackFideId "3902510"]
[WhiteElo "2464"]
[BlackElo "2195"]
[Result "1-0"]
[Round "4"]
[TimeControl "180+2"]
[Date "2023.07.11"]
[WhiteClock "0:00:17"]
[BlackClock "0:00:09"]
[Board "170"]

1. e4 {[%clk 0:02:09]}  e6 {[%clk 0:02:56]} 2. Nc3 {[%clk 0:02:10]}  d5 {[%clk 0:02:56]} 3. Nf3 {[%clk 0:02:11]}  dxe4 {[%clk 0:02:57]} 4. Nxe4 {[%clk 0:02:12]}  Nd7 {[%clk 0:02:57]} 5. d4 {[%clk 0:02:11]}  Ngf6 {[%clk 0:02:58]} 6. Nxf6+ {[%clk 0:02:12]}  Nxf6 {[%clk 0:02:58]} 7. g3 {[%clk 0:02:12]}  Bd7 {[%clk 0:02:56]} 8. Bg2 {[%clk 0:02:13]}  Bc6 {[%clk 0:02:57]} 9. O-O {[%clk 0:02:13]}  Be7 {[%clk 0:02:57]} 10. Re1 {[%clk 0:02:10]}  O-O {[%clk 0:02:57]} 11. c4 {[%clk 0:02:09]}  b6 {[%clk 0:02:46]} 12. Bf4 {[%clk 0:02:02]}  Bb4 {[%clk 0:02:37]} 13. Re2 {[%clk 0:01:59]}  Bb7 {[%clk 0:02:29]} 14. Ne5 {[%clk 0:01:56]}  Bxg2 {[%clk 0:02:28]} 15. Kxg2 {[%clk 0:01:57]}  Bd6 {[%clk 0:02:19]} 16. Bg5 {[%clk 0:01:55]}  c5 {[%clk 0:02:14]} 17. Bxf6 {[%clk 0:01:39]}  gxf6 {[%clk 0:01:57]} 18. Nf3 {[%clk 0:01:39]}  Qc7 {[%clk 0:01:49]} 19. d5 {[%clk 0:01:35]}  Rad8 {[%clk 0:01:47]} 20. Qc2 {[%clk 0:01:33]}  Rfe8 {[%clk 0:01:44]} 21. Rae1 {[%clk 0:01:31]}  Qd7 {[%clk 0:01:27]} 22. Qe4 {[%clk 0:00:58]}  f5 {[%clk 0:01:23]} 23. Qh4 {[%clk 0:00:57]}  Be7 {[%clk 0:00:41]} 24. Ng5 {[%clk 0:00:45]}  Bxg5 {[%clk 0:00:32]} 25. Qxg5+ {[%clk 0:00:46]}  Kf8 {[%clk 0:00:28]} 26. Qh6+ {[%clk 0:00:38]}  Kg8 {[%clk 0:00:28]} 27. dxe6 {[%clk 0:00:35]}  fxe6 {[%clk 0:00:26]} 28. Rxe6 {[%clk 0:00:36]}  Rxe6 {[%clk 0:00:23]} 29. Rxe6 {[%clk 0:00:36]}  Rf8 {[%clk 0:00:19]} 30. Qg5+ {[%clk 0:00:29]}  Kh8 {[%clk 0:00:16]} 31. Re7 {[%clk 0:00:26]}  Qc6+ {[%clk 0:00:15]} 32. f3 {[%clk 0:00:24]}  Rg8 {[%clk 0:00:15]} 33. Qe3 {[%clk 0:00:18]}  Rf8 {[%clk 0:00:11]} 34. Qe5+ {[%clk 0:00:18]}  Qf6 {[%clk 0:00:11]} 35. Qxf6+ {[%clk 0:00:18]}  Rxf6 {[%clk 0:00:12]} 36. Rxa7 {[%clk 0:00:19]}  Rd6 {[%clk 0:00:12]} 37. Kh3 {[%clk 0:00:19]}  Rd4 {[%clk 0:00:12]} 38. b3 {[%clk 0:00:19]}  Rd2 {[%clk 0:00:13]} 39. Ra6 {[%clk 0:00:17]}  Rd6 {[%clk 0:00:13]} 40. Kh4 {[%clk 0:00:15]}  Kg7 {[%clk 0:00:14]} 41. Kg5 {[%clk 0:00:15]}  Rd3 {[%clk 0:00:12]} 42. Kf4 {[%clk 0:00:14]}  Rd6 {[%clk 0:00:12]} 43. Kxf5 {[%clk 0:00:14]}  Rf6+ {[%clk 0:00:12]} 44. Ke4 {[%clk 0:00:14]}  Kg6 {[%clk 0:00:12]} 45. f4 {[%clk 0:00:14]}  Kh5 {[%clk 0:00:12]} 46. Kf3 {[%clk 0:00:14]}  Kg6 {[%clk 0:00:13]} 47. a4 {[%clk 0:00:14]}  Kf5 {[%clk 0:00:13]} 48. a5 {[%clk 0:00:14]}  Rd6 {[%clk 0:00:10]} 49. g4+ {[%clk 0:00:14]}  Ke6 {[%clk 0:00:10]} 50. Rxb6 {[%clk 0:00:15]}  Rxb6 {[%clk 0:00:11]} 51. axb6 {[%clk 0:00:15]}  Kd6 {[%clk 0:00:12]} 52. Ke4 {[%clk 0:00:16]}  Kc6 {[%clk 0:00:12]} 53. f5 {[%clk 0:00:16]}  Kxb6 {[%clk 0:00:09]} 54. Kd5 {[%clk 0:00:17]} 1-0


[Site "https://www.chess.com"]

[Event "Titled Tuesday Blitz July 11 Early 2023"]
[White "Lisjak, Zlatko"]
[Black "Gatterer, Florian"]
[WhiteFideId "14502186"]
[BlackFideId "811688"]
[WhiteElo "2161"]
[BlackElo "2459"]
[Result "0-1"]
[Round "4"]
[TimeControl "180+2"]
[Date "2023.07.11"]
[WhiteClock "0:00:00"]
[BlackClock "0:00:30"]
[Board "172"]

1. d4 {[%clk 0:03:00]}  d5 {[%clk 0:02:59]} 2. Nc3 {[%clk 0:02:59]}  Nf6 {[%clk 0:02:56]} 3. Bf4 {[%clk 0:02:59]}  c5 {[%clk 0:02:55]} 4. e3 {[%clk 0:02:57]}  cxd4 {[%clk 0:02:51]} 5. exd4 {[%clk 0:02:55]}  Bg4 {[%clk 0:02:50]} 6. f3 {[%clk 0:02:52]}  Bd7 {[%clk 0:02:45]} 7. g4 {[%clk 0:02:43]}  e6 {[%clk 0:02:39]} 8. Bd3 {[%clk 0:02:34]}  Nc6 {[%clk 0:02:32]} 9. Nb5 {[%clk 0:02:20]}  Rc8 {[%clk 0:02:21]} 10. c3 {[%clk 0:02:03]}  Qb6 {[%clk 0:02:00]} 11. Qe2 {[%clk 0:01:53]}  a6 {[%clk 0:01:44]} 12. Nd6+ {[%clk 0:01:31]}  Bxd6 {[%clk 0:01:43]} 13. Bxd6 {[%clk 0:01:31]}  Nxd4 {[%clk 0:01:43]} 14. Qe5 {[%clk 0:01:24]}  Qxb2 {[%clk 0:01:28]} 15. Rd1 {[%clk 0:01:22]}  Qxc3+ {[%clk 0:01:25]} 16. Kf2 {[%clk 0:01:17]}  Nb5 {[%clk 0:00:55]} 17. Ne2 {[%clk 0:00:44]}  Qxe5 {[%clk 0:00:51]} 18. Bxe5 {[%clk 0:00:41]}  O-O {[%clk 0:00:51]} 19. g5 {[%clk 0:00:33]}  Ne8 {[%clk 0:00:45]} 20. h4 {[%clk 0:00:24]}  Ned6 {[%clk 0:00:42]} 21. h5 {[%clk 0:00:22]}  Nf5 {[%clk 0:00:39]} 22. g6 {[%clk 0:00:15]}  fxg6 {[%clk 0:00:35]} 23. hxg6 {[%clk 0:00:14]}  h6 {[%clk 0:00:35]} 24. Nf4 {[%clk 0:00:12]}  Nc3 {[%clk 0:00:31]} 25. Rc1 {[%clk 0:00:09]}  Nxa2 {[%clk 0:00:31]} 26. Ra1 {[%clk 0:00:08]}  Nb4 {[%clk 0:00:30]} 27. Bb1 {[%clk 0:00:06]}  Nc6 {[%clk 0:00:30]} 28. Bb2 {[%clk 0:00:00]}  Nfd4 {[%clk 0:00:30]} 0-1


[Site "https://www.chess.com"]

[Event "Titled Tuesday Blitz July 11 Early 2023"]
[White "Wesolowska, Hanna"]
[Black "Rodriguez Fontecha, Marcos"]
[WhiteFideId "1104683"]
[BlackFideId "2256576"]
[WhiteElo "2160"]
[BlackElo "2457"]
[Result "1/2-1/2"]
[Round "4"]
[TimeControl "180+2"]
[Date "2023.07.11"]
[WhiteClock "0:00:07"]
[BlackClock "0:00:06"]
[Board "173"]

1. e4 {[%clk 0:02:52]}  e6 {[%clk 0:02:56]} 2. Nc3 {[%clk 0:02:49]}  d5 {[%clk 0:02:54]} 3. d4 {[%clk 0:02:35]}  Bb4 {[%clk 0:02:52]} 4. e5 {[%clk 0:02:27]}  Ne7 {[%clk 0:02:52]} 5. Bd2 {[%clk 0:02:26]}  b6 {[%clk 0:02:48]} 6. Qg4 {[%clk 0:02:21]}  O-O {[%clk 0:02:41]} 7. Bd3 {[%clk 0:02:19]}  c5 {[%clk 0:02:30]} 8. dxc5 {[%clk 0:02:14]}  bxc5 {[%clk 0:02:29]} 9. a3 {[%clk 0:02:14]}  Bxc3 {[%clk 0:02:25]} 10. bxc3 {[%clk 0:01:54]}  c4 {[%clk 0:02:17]} 11. Be2 {[%clk 0:01:48]}  Nbc6 {[%clk 0:02:11]} 12. f4 {[%clk 0:01:47]}  f6 {[%clk 0:02:02]} 13. Nf3 {[%clk 0:01:46]}  Qb6 {[%clk 0:01:52]} 14. h4 {[%clk 0:01:31]}  fxe5 {[%clk 0:01:47]} 15. fxe5 {[%clk 0:01:22]}  Nf5 {[%clk 0:01:27]} 16. h5 {[%clk 0:01:09]}  d4 {[%clk 0:01:16]} 17. cxd4 {[%clk 0:00:58]}  Ncxd4 {[%clk 0:01:13]} 18. Nxd4 {[%clk 0:00:56]}  Nxd4 {[%clk 0:01:05]} 19. Kd1 {[%clk 0:00:18]}  Nxe2 {[%clk 0:00:34]} 20. Qxe2 {[%clk 0:00:19]}  c3 {[%clk 0:00:35]} 21. Be3 {[%clk 0:00:13]}  Qb2 {[%clk 0:00:34]} 22. Rc1 {[%clk 0:00:07]}  a5 {[%clk 0:00:21]} 23. h6 {[%clk 0:00:06]}  g6 {[%clk 0:00:19]} 24. Rf1 {[%clk 0:00:04]}  Rxf1+ {[%clk 0:00:16]} 25. Qxf1 {[%clk 0:00:04]}  Qb7 {[%clk 0:00:12]} 26. Qf6 {[%clk 0:00:04]}  Qd7+ {[%clk 0:00:08]} 27. Ke1 {[%clk 0:00:04]}  Ba6 {[%clk 0:00:08]} 28. Rd1 {[%clk 0:00:04]}  Qc7 {[%clk 0:00:03]} 29. Qxe6+ {[%clk 0:00:02]}  Qf7 {[%clk 0:00:02]} 30. Qxf7+ {[%clk 0:00:03]}  Kxf7 {[%clk 0:00:03]} 31. Rd6 {[%clk 0:00:03]}  Bb5 {[%clk 0:00:01]} 32. Rf6+ {[%clk 0:00:03]}  Ke7 {[%clk 0:00:01]} 33. Rb6 {[%clk 0:00:03]}  Bc4 {[%clk 0:00:01]} 34. Bd4 {[%clk 0:00:02]}  Be6 {[%clk 0:00:01]} 35. Bxc3 {[%clk 0:00:02]}  Bd5 {[%clk 0:00:01]} 36. Bd4 {[%clk 0:00:02]}  Rc8 {[%clk 0:00:02]} 37. c3 {[%clk 0:00:02]}  Bc6 {[%clk 0:00:02]} 38. Ra6 {[%clk 0:00:02]}  Ke6 {[%clk 0:00:03]} 39. Rxa5 {[%clk 0:00:02]}  Kf5 {[%clk 0:00:03]} 40. Ra6 {[%clk 0:00:02]}  Ke4 {[%clk 0:00:04]} 41. Ra7 {[%clk 0:00:02]}  Bd5 {[%clk 0:00:04]} 42. Rxh7 {[%clk 0:00:03]}  Rb8 {[%clk 0:00:05]} 43. Kf2 {[%clk 0:00:03]}  Bc4 {[%clk 0:00:05]} 44. Kg3 {[%clk 0:00:04]}  Rb2 {[%clk 0:00:06]} 45. Rg7 {[%clk 0:00:04]}  Bf1 {[%clk 0:00:06]} 46. Kh4 {[%clk 0:00:04]}  Rxg2 {[%clk 0:00:06]} 47. h7 {[%clk 0:00:03]}  Rh2+ {[%clk 0:00:07]} 48. Kg5 {[%clk 0:00:04]}  Rg2+ {[%clk 0:00:07]} 49. Kf6 {[%clk 0:00:04]}  Be2 {[%clk 0:00:08]} 50. Ke7 {[%clk 0:00:05]}  Rh2 {[%clk 0:00:08]} 51. Kf8 {[%clk 0:00:05]}  Bg4 {[%clk 0:00:08]} 52. Kg8 {[%clk 0:00:05]}  Be6+ {[%clk 0:00:09]} 53. Kf8 {[%clk 0:00:05]}  Kd5 {[%clk 0:00:09]} 54. Rxg6 {[%clk 0:00:05]}  Rh1 {[%clk 0:00:10]} 55. Rg7 {[%clk 0:00:05]}  Rf1+ {[%clk 0:00:09]} 56. Ke7 {[%clk 0:00:04]}  Rh1 {[%clk 0:00:09]} 57. Rg6 {[%clk 0:00:04]}  Bf5 {[%clk 0:00:09]} 58. Rg7 {[%clk 0:00:04]}  Bxh7 {[%clk 0:00:09]} 59. e6 {[%clk 0:00:03]}  Bf5 {[%clk 0:00:08]} 60. Kf7 {[%clk 0:00:03]}  Bxe6+ {[%clk 0:00:09]} 61. Kf6 {[%clk 0:00:04]}  Rf1+ {[%clk 0:00:09]} 62. Ke7 {[%clk 0:00:04]}  Bf5 {[%clk 0:00:08]} 63. Rg5 {[%clk 0:00:05]}  Kc4 {[%clk 0:00:08]} 64. a4 {[%clk 0:00:05]}  Be4 {[%clk 0:00:08]} 65. Kd6 {[%clk 0:00:05]}  Rb1 {[%clk 0:00:08]} 66. Rc5+ {[%clk 0:00:05]}  Kd3 {[%clk 0:00:07]} 67. Rb5 {[%clk 0:00:05]}  Ra1 {[%clk 0:00:06]} 68. a5 {[%clk 0:00:06]}  Bg6 {[%clk 0:00:05]} 69. Kc5 {[%clk 0:00:06]}  Be8 {[%clk 0:00:05]} 70. Rb8 {[%clk 0:00:03]}  Rxa5+ {[%clk 0:00:04]} 71. Kb4 {[%clk 0:00:04]}  Ra4+ {[%clk 0:00:04]} 72. Kb3 {[%clk 0:00:04]}  Rxd4 {[%clk 0:00:03]} 73. cxd4 {[%clk 0:00:04]}  Bf7+ {[%clk 0:00:03]} 74. Kb4 {[%clk 0:00:03]}  Kxd4 {[%clk 0:00:04]} 75. Rd8+ {[%clk 0:00:04]}  Bd5 {[%clk 0:00:04]} 76. Kb5 {[%clk 0:00:03]}  Ke5 {[%clk 0:00:04]} 77. Kc5 {[%clk 0:00:04]}  Be6 {[%clk 0:00:04]} 78. Re8 {[%clk 0:00:04]}  Kf6 {[%clk 0:00:05]} 79. Rd8 {[%clk 0:00:05]}  Bf7 {[%clk 0:00:05]} 80. Rd6+ {[%clk 0:00:06]}  Kg7 {[%clk 0:00:05]} 81. Kd4 {[%clk 0:00:06]}  Bg6 {[%clk 0:00:05]} 82. Ke5 {[%clk 0:00:07]}  Bf7 {[%clk 0:00:06]} 83. Re6 {[%clk 0:00:07]}  Bxe6 {[%clk 0:00:06]} 1/2-1/2


[Site "https://www.chess.com"]

[Event "Titled Tuesday Blitz July 11 Early 2023"]
[White "Mmukka"]
[Black "HeinichessPY"]
[WhiteElo "2456"]
[BlackElo "2154"]
[Result "1-0"]
[Round "4"]
[TimeControl "180+2"]
[Date "2023.07.11"]
[WhiteClock "0:00:14"]
[BlackClock "0:00:00"]
[Board "174"]

1. e4 {[%clk 0:02:59]}  c5 {[%clk 0:03:00]} 2. Nf3 {[%clk 0:02:59]}  Nc6 {[%clk 0:02:59]} 3. d4 {[%clk 0:02:59]}  cxd4 {[%clk 0:03:00]} 4. Nxd4 {[%clk 0:03:00]}  g6 {[%clk 0:03:00]} 5. Nc3 {[%clk 0:03:00]}  Bg7 {[%clk 0:03:00]} 6. Nb3 {[%clk 0:03:00]}  Nf6 {[%clk 0:02:59]} 7. Be2 {[%clk 0:03:00]}  O-O {[%clk 0:02:59]} 8. O-O {[%clk 0:03:00]}  d6 {[%clk 0:03:00]} 9. Bg5 {[%clk 0:03:00]}  Bd7 {[%clk 0:02:58]} 10. Kh1 {[%clk 0:02:38]}  Rc8 {[%clk 0:02:51]} 11. f4 {[%clk 0:02:37]}  a5 {[%clk 0:02:23]} 12. a4 {[%clk 0:02:36]}  Nb4 {[%clk 0:02:16]} 13. Bf3 {[%clk 0:02:13]}  Bc6 {[%clk 0:02:08]} 14. Nd4 {[%clk 0:02:02]}  Bd7 {[%clk 0:01:35]} 15. e5 {[%clk 0:01:45]}  dxe5 {[%clk 0:01:36]} 16. fxe5 {[%clk 0:01:45]}  Nh5 {[%clk 0:01:04]} 17. Bxh5 {[%clk 0:01:27]}  gxh5 {[%clk 0:01:04]} 18. Qxh5 {[%clk 0:01:26]}  Qb6 {[%clk 0:00:47]} 19. Bxe7 {[%clk 0:01:08]}  Qxd4 {[%clk 0:00:41]} 20. Bxf8 {[%clk 0:01:07]}  Rxf8 {[%clk 0:00:41]} 21. Rad1 {[%clk 0:00:58]}  Qc4 {[%clk 0:00:34]} 22. Qg5 {[%clk 0:00:45]}  Bc6 {[%clk 0:00:27]} 23. Rf4 {[%clk 0:00:42]}  Qe6 {[%clk 0:00:20]} 24. Rg4 {[%clk 0:00:41]}  Qg6 {[%clk 0:00:17]} 25. Qh4 {[%clk 0:00:30]}  Nxc2 {[%clk 0:00:12]} 26. Rxg6 {[%clk 0:00:29]}  fxg6 {[%clk 0:00:12]} 27. Qc4+ {[%clk 0:00:26]}  Kh8 {[%clk 0:00:11]} 28. Qe2 {[%clk 0:00:24]}  Nb4 {[%clk 0:00:05]} 29. h3 {[%clk 0:00:20]}  Re8 {[%clk 0:00:05]} 30. e6 {[%clk 0:00:21]}  Re7 {[%clk 0:00:04]} 31. Rd8+ {[%clk 0:00:20]}  Be8 {[%clk 0:00:05]} 32. Qc4 {[%clk 0:00:19]}  Nc6 {[%clk 0:00:04]} 33. Rc8 {[%clk 0:00:15]}  h5 {[%clk 0:00:01]} 34. Qe4 {[%clk 0:00:14]}  Kh7 {[%clk 0:00:00]} 35. Nd5 {[%clk 0:00:14]} 1-0


[Site "https://www.chess.com"]

[Event "Titled Tuesday Blitz July 11 Early 2023"]
[White "Grigoryan, Meri"]
[Black "Kukreja Sankalp"]
[WhiteFideId "13300571"]
[BlackFideId "45027676"]
[WhiteElo "2143"]
[BlackElo "2456"]
[Result "0-1"]
[Round "4"]
[TimeControl "180+2"]
[Date "2023.07.11"]
[WhiteClock "0:00:00"]
[BlackClock "0:00:31"]
[Board "175"]

1. d4 {[%clk 0:03:00]}  d5 {[%clk 0:02:55]} 2. Nf3 {[%clk 0:02:59]}  Nf6 {[%clk 0:02:52]} 3. Bf4 {[%clk 0:02:58]}  Bf5 {[%clk 0:02:51]} 4. c3 {[%clk 0:02:57]}  e6 {[%clk 0:02:47]} 5. e3 {[%clk 0:02:57]}  Bd6 {[%clk 0:02:46]} 6. Bd3 {[%clk 0:02:56]}  Bxf4 {[%clk 0:02:44]} 7. exf4 {[%clk 0:02:57]}  Bxd3 {[%clk 0:02:42]} 8. Qxd3 {[%clk 0:02:57]}  O-O {[%clk 0:02:43]} 9. Nbd2 {[%clk 0:02:56]}  Nbd7 {[%clk 0:02:40]} 10. Ne5 {[%clk 0:02:55]}  c5 {[%clk 0:02:40]} 11. O-O {[%clk 0:02:53]}  Rc8 {[%clk 0:02:40]} 12. Rac1 {[%clk 0:02:49]}  Qb6 {[%clk 0:02:36]} 13. b3 {[%clk 0:02:46]}  Qa5 {[%clk 0:02:20]} 14. c4 {[%clk 0:01:59]}  Rfd8 {[%clk 0:02:08]} 15. cxd5 {[%clk 0:01:50]}  Nxd5 {[%clk 0:02:06]} 16. Ndc4 {[%clk 0:01:31]}  Qc7 {[%clk 0:01:53]} 17. dxc5 {[%clk 0:01:17]}  Nxc5 {[%clk 0:01:48]} 18. Qg3 {[%clk 0:01:11]}  Ne4 {[%clk 0:01:44]} 19. Qh4 {[%clk 0:01:07]}  b5 {[%clk 0:01:26]} 20. f3 {[%clk 0:00:36]}  Nec3 {[%clk 0:01:16]} 21. Rfe1 {[%clk 0:00:17]}  bxc4 {[%clk 0:01:12]} 22. bxc4 {[%clk 0:00:18]}  Qb6+ {[%clk 0:00:42]} 23. Kh1 {[%clk 0:00:15]}  Nxa2 {[%clk 0:00:38]} 24. Rcd1 {[%clk 0:00:00]}  Nf6 {[%clk 0:00:31]} 0-1


[Site "https://www.chess.com"]

[Event "Titled Tuesday Blitz July 11 Early 2023"]
[White "Luo, Terry"]
[Black "Sailer, Mike"]
[WhiteFideId "30931045"]
[BlackFideId "2012901"]
[WhiteElo "2449"]
[BlackElo "2136"]
[Result "0-1"]
[Round "4"]
[TimeControl "180+2"]
[Date "2023.07.11"]
[WhiteClock "0:01:33"]
[BlackClock "0:00:08"]
[Board "176"]

1. d4 {[%clk 0:03:00]}  d5 {[%clk 0:02:59]} 2. Nc3 {[%clk 0:02:58]}  Nf6 {[%clk 0:02:53]} 3. Bf4 {[%clk 0:02:55]}  a6 {[%clk 0:02:52]} 4. e3 {[%clk 0:02:54]}  e6 {[%clk 0:02:51]} 5. Nf3 {[%clk 0:02:54]}  c5 {[%clk 0:02:49]} 6. Ne5 {[%clk 0:02:52]}  Nc6 {[%clk 0:02:47]} 7. g4 {[%clk 0:02:52]}  h6 {[%clk 0:02:40]} 8. Bg2 {[%clk 0:02:49]}  Bd6 {[%clk 0:02:34]} 9. h4 {[%clk 0:02:46]}  cxd4 {[%clk 0:02:25]} 10. exd4 {[%clk 0:02:45]}  Qc7 {[%clk 0:02:24]} 11. g5 {[%clk 0:02:32]}  hxg5 {[%clk 0:02:24]} 12. hxg5 {[%clk 0:02:33]}  Rxh1+ {[%clk 0:02:24]} 13. Bxh1 {[%clk 0:02:34]}  Nd7 {[%clk 0:02:12]} 14. g6 {[%clk 0:02:19]}  f6 {[%clk 0:02:00]} 15. Nxd7 {[%clk 0:02:16]}  Bxf4 {[%clk 0:01:52]} 16. Nc5 {[%clk 0:02:15]}  b6 {[%clk 0:01:44]} 17. Nd3 {[%clk 0:02:14]}  Bh6 {[%clk 0:01:44]} 18. Ne2 {[%clk 0:02:06]}  Qh2 {[%clk 0:01:41]} 19. Bf3 {[%clk 0:02:05]}  Qh3 {[%clk 0:01:21]} 20. Ng1 {[%clk 0:02:00]}  Qh2 {[%clk 0:01:16]} 21. Ne2 {[%clk 0:02:00]}  Bb7 {[%clk 0:00:48]} 22. c3 {[%clk 0:02:00]}  O-O-O {[%clk 0:00:44]} 23. Ng3 {[%clk 0:02:00]}  e5 {[%clk 0:00:33]} 24. dxe5 {[%clk 0:01:53]}  fxe5 {[%clk 0:00:33]} 25. Bg4+ {[%clk 0:01:52]}  Kb8 {[%clk 0:00:32]} 26. Qe2 {[%clk 0:01:33]}  e4 {[%clk 0:00:32]} 27. Nb4 {[%clk 0:01:33]}  Nxb4 {[%clk 0:00:23]} 28. cxb4 {[%clk 0:01:34]}  d4 {[%clk 0:00:18]} 29. Nxe4 {[%clk 0:01:23]}  Qh1+ {[%clk 0:00:18]} 30. Qf1 {[%clk 0:01:20]}  Qxe4+ {[%clk 0:00:18]} 31. Be2 {[%clk 0:01:21]}  d3 {[%clk 0:00:17]} 32. f3 {[%clk 0:01:21]}  Qxe2+ {[%clk 0:00:17]} 33. Qxe2 {[%clk 0:01:22]}  dxe2 {[%clk 0:00:16]} 34. Kxe2 {[%clk 0:01:23]}  Rd2+ {[%clk 0:00:15]} 35. Kf1 {[%clk 0:01:24]}  Bxf3 {[%clk 0:00:15]} 36. Re1 {[%clk 0:01:24]}  Rxb2 {[%clk 0:00:06]} 37. Re8+ {[%clk 0:01:25]}  Kb7 {[%clk 0:00:06]} 38. Re6 {[%clk 0:01:26]}  Rxa2 {[%clk 0:00:05]} 39. Re7+ {[%clk 0:01:26]}  Kc6 {[%clk 0:00:06]} 40. Ke1 {[%clk 0:01:27]}  Bg5 {[%clk 0:00:05]} 41. Re6+ {[%clk 0:01:27]}  Kb5 {[%clk 0:00:05]} 42. Re5+ {[%clk 0:01:25]}  Kxb4 {[%clk 0:00:04]} 43. Rxg5 {[%clk 0:01:26]}  a5 {[%clk 0:00:03]} 44. Rg3 {[%clk 0:01:26]}  Bd5 {[%clk 0:00:03]} 45. Re3 {[%clk 0:01:27]}  Bc4 {[%clk 0:00:03]} 46. Re7 {[%clk 0:01:27]}  b5 {[%clk 0:00:02]} 47. Rxg7 {[%clk 0:01:28]}  a4 {[%clk 0:00:03]} 48. Rc7 {[%clk 0:01:27]}  Rg2 {[%clk 0:00:04]} 49. g7 {[%clk 0:01:27]}  a3 {[%clk 0:00:03]} 50. Kd1 {[%clk 0:01:28]}  Rg1+ {[%clk 0:00:03]} 51. Kd2 {[%clk 0:01:28]}  a2 {[%clk 0:00:04]} 52. Ra7 {[%clk 0:01:28]}  a1=Q {[%clk 0:00:05]} 53. Rxa1 {[%clk 0:01:29]}  Rxa1 {[%clk 0:00:05]} 54. Ke3 {[%clk 0:01:29]}  Rg1 {[%clk 0:00:06]} 55. Kd4 {[%clk 0:01:30]}  Rxg7 {[%clk 0:00:06]} 56. Ke5 {[%clk 0:01:31]}  Rd7 {[%clk 0:00:07]} 57. Kf6 {[%clk 0:01:31]}  Rd3 {[%clk 0:00:07]} 58. Ke5 {[%clk 0:01:32]}  Kc5 {[%clk 0:00:07]} 59. Kf4 {[%clk 0:01:33]}  b4 {[%clk 0:00:08]} 0-1


[Site "https://www.chess.com"]